fUSD/lending_fUSD_20240730
["ID","MTS","AMOUNT","RATE_DAILY","PERIOD"]
[333662785,1722322233111,-500.0,0.0001,2]
[333662786,1722322233121,-500.0,0.0001,2]
[333662788,1722322233130,-500.0,0.0001,2]
[333662790,1722322233140,-500.0,0.0001,2]
[333662792,1722322233149,-500.0,0.0001,2]
[333662794,1722322233158,-500.0,0.0001,2]
[333662796,1722322233168,-500.0,0.0001,2]
[333662798,1722322233178,-500.0,0.0001,2]
[333662800,1722322233187,-500.0,0.0001,2]
[333662802,1722322233198,-500.0,0.0001,2]
[333662804,1722322233208,-500.0,0.0001,2]
[333662806,1722322233217,-500.0,0.0001,2]
[333662807,1722322233227,-500.0,0.0001,2]
[333662809,1722322233238,-500.0,0.0001,2]
[333662811,1722322233249,-500.0,0.0001,2]
[333662813,1722322233261,-500.0,0.0001,2]
[333662815,1722322233271,-500.0,0.0001,2]
[333662817,1722322233281,-500.0,0.0001,2]
[333662819,1722322233291,-500.0,0.0001,2]
[333662821,1722322233300,-500.0,0.0001,2]
[333662823,1722322233309,-500.0,0.0001,2]
[333662825,1722322233319,-500.0,0.0001,2]
[333662827,1722322233331,-500.0,0.0001,2]
[333662829,1722322233342,-500.0,0.0001,2]
[333662831,1722322233351,-500.0,0.0001,2]
[333662833,1722322233361,-500.0,0.0001,2]
[333662835,1722322233371,-500.0,0.0001,2]
[333662837,1722322233380,-500.0,0.0001,2]
[333662839,1722322233389,-244.36122614,0.0001,2]
[333662841,1722322233401,-255.63877386,0.0001,2]
[333662843,1722322233411,-500.0,0.0001,2]
[333662845,1722322233420,-500.0,0.0001,2]
[333662847,1722322233429,-500.0,0.0001,2]
[333662849,1722322233439,-500.0,0.0001,2]
[333662850,1722322233448,-500.0,0.0001,2]
[333662851,1722322233458,-500.0,0.0001,2]
[333662852,1722322233467,-500.0,0.0001,2]
[333662853,1722322233476,-500.0,0.0001,2]
[333662854,1722322233485,-377.37600999,0.0001,2]
[333662855,1722322233497,-122.62399001,0.0001,2]
[333662856,1722322233506,-500.0,0.0001,2]
[333662857,1722322233516,-500.0,0.0001,2]
[333662858,1722322233526,-500.0,0.0001,2]
[333662859,1722322233536,-333.75194353,0.0001,2]
[333662860,1722322233547,-166.24805647,0.0001,2]
[333662861,1722322233558,-500.0,0.0001,2]
[333662862,1722322233567,-500.0,0.0001,2]
[333662863,1722322233576,-500.0,0.0001,2]
[333662864,1722322233586,-500.0,0.0001,2]
[333662865,1722322233595,-500.0,0.0001,2]
[333662866,1722322233604,-500.0,0.0001,2]
[333662867,1722322233614,-500.0,0.0001,2]
[333662868,1722322233623,-500.0,0.0001,2]
[333662869,1722322233633,-500.0,0.0001,2]
[333662870,1722322233642,-500.0,0.0001,2]
[333662871,1722322233652,-500.0,0.0001,2]
[333662872,1722322233662,-500.0,0.0001,2]
[333662873,1722322233671,-500.0,0.0001,2]
[333662874,1722322233680,-500.0,0.0001,2]
[333662875,1722322233690,-500.0,0.0001,2]
[333662876,1722322233700,-500.0,0.0001,2]
[333662877,1722322233710,-500.0,0.0001,2]
[333662878,1722322233720,-500.0,0.0001,2]
[333662879,1722322233730,-500.0,0.0001,2]
[333662880,1722322233740,-179.97,0.0001,2]
[333662881,1722322233749,-500.0,0.0001,2]
[333662882,1722322233760,-415.19,0.0001,2]
[333662883,1722322233770,-500.0,0.0001,2]
[333662884,1722322233779,-500.0,0.0001,2]
[333662885,1722322233789,-1000.0,0.00010022,2]
[333662886,1722322233798,-300.0,0.00010192,2]
[333662887,1722322233808,-425.76,0.00010192,2]
[333662888,1722322233817,-356.02,0.00010192,2]
[333662889,1722322233826,-425.76,0.00010192,2]
[333662890,1722322233838,-356.02,0.00010192,2]
[333662891,1722322233847,-425.76,0.00010192,2]
[333662892,1722322233857,-356.02,0.00010192,2]
[333662893,1722322233867,-425.48,0.00010192,2]
[333662895,1722322233877,-356.02,0.00010192,2]
[333662896,1722322233888,-48.12809293,0.00010192,2]
[333662933,1722322237913,-297.06190707,0.00010192,2]
[333662935,1722322237923,-499.99,0.00010259,2]
[333662937,1722322237933,-3568.01696668,0.00010313,2]
[333662939,1722322237942,-693.32,0.00010453,2]
[333662940,1722322237951,-2500.0,0.000105,2]
[333662942,1722322237961,-22181.73112635,0.000106,2]
[333662945,1722322237974,-343.85707999,0.000106,2]
[333662947,1722322237985,-79525.00888588,0.000106,2]
[333662950,1722322238005,-17003.40300071,0.000106,2]
[333662952,1722322238017,-7488.22927457,0.000106,2]
[333662953,1722322238204,-338.22,0.000106,2]
[333662954,1722322238264,-6918.065367,0.000106,2]
[333662955,1722322238275,-957.32050823,0.000106,2]
[333662956,1722322238286,-675.54813812,0.000106,2]
[333662957,1722322238297,-1194.60293557,0.000106,2]
[333662958,1722322238308,-795.2682055,0.000106,2]
[333662959,1722322238320,-1007.38297438,0.000106,2]
[333662960,1722322238331,-437.42712482,0.000106,2]
[333662961,1722322238343,-394.35803318,0.000106,2]
[333662979,1722322239947,-4930.42519596,0.00010313,2]
[333662981,1722322239957,-10703.68349305,0.000106,2]
[333662982,1722322239969,-339.77262412,0.000106,2]
[333662983,1722322240015,-907.65657637,0.000106,2]
[333662984,1722322240027,-1460.32639976,0.000106,2]
[333662985,1722322240038,-1696.35789163,0.000106,2]
[333662986,1722322240049,-3040.21925122,0.000106,2]
[333662987,1722322240077,-7531.57161534,0.000106,2]
[333662988,1722322240089,-1323.72601942,0.000106,2]
[333662989,1722322240548,-17529.85149788,0.000106,2]
[333662990,1722322240559,-4925.39450496,0.000106,2]
[333662992,1722322240576,-871.04087,0.000106,2]
[333662994,1722322240587,-332.98000001,0.000106,2]
[333663278,1722322243113,-2600.79910379,0.000106,2]
[333663291,1722322243182,-39977.64180118,0.000106,2]
[333663294,1722322243193,-17720.0,0.000106,2]
[333663319,1722322246027,-1961.5294,0.000105,2]
[333663320,1722322246037,-99535.96773504,0.000106,2]
[333663321,1722322246100,-5525.80882502,0.000106,2]
[333663322,1722322246111,-667.075,0.000106,2]
[333663323,1722322246123,-52557.12861946,0.000106,2]
[333663324,1722322246293,-3340.55,0.000106,2]
[333663325,1722322246304,-2308.78523856,0.000106,2]
[333663405,1722322829229,10000.0,0.0001,120]
[333663485,1722323392930,5000.0,0.00013,120]
[333663499,1722323432071,-661.35,8.219e-05,2]
[333663500,1722323432082,-999.8359856,9.682e-05,2]
[333663501,1722323432131,-0.1640144,9.682e-05,2]
[333663502,1722323432143,-250.0,9.729e-05,2]
[333663503,1722323432153,-4616.72108169,9.757e-05,2]
[333663504,1722323432190,-1283.014934,9.757e-05,2]
[333663505,1722323432201,-716.56398431,9.757e-05,2]
[333663506,1722323432210,-210.0,9.83e-05,2]
[333663507,1722323432220,-165.88,9.882e-05,2]
[333663508,1722323432229,-300.0,9.999e-05,2]
[333663509,1722323432238,-500.0,0.0001,2]
[333663510,1722323432248,-337.22,0.0001,2]
[333663511,1722323432258,-500.0,0.0001,2]
[333663512,1722323432267,-500.0,0.0001,2]
[333663513,1722323432277,-500.0,0.0001,2]
[333663514,1722323432286,-500.0,0.0001,2]
[333663515,1722323432295,-500.0,0.0001,2]
[333663516,1722323432304,-500.0,0.0001,2]
[333663517,1722323432314,-500.0,0.0001,2]
[333663518,1722323432323,-179.86790197,0.0001,2]
[333663519,1722323432334,-320.13209803,0.0001,2]
[333663520,1722323432344,-197.71858893,0.0001,2]
[333663521,1722323432355,-177.10141107,0.0001,2]
[333663522,1722323432365,-491.18,0.0001,2]
[333663523,1722323432377,-2072.27728906,0.0001,2]
[333663524,1722323432387,-588.48900395,0.0001,2]
[333663525,1722323432397,-181.64348729,0.0001,2]
[333663526,1722323432406,-257.5902197,0.0001,2]
[333663527,1722323432425,-153.95912558,0.0001,2]
[333663528,1722323432435,-485.18575139,0.0001,2]
[333663529,1722323432446,-155.0,0.0001,2]
[333663530,1722323432455,-257.25363019,0.0001,2]
[333663531,1722323432464,-1049.62171461,0.0001,2]
[333663533,1722323432473,-306.61577823,0.0001,2]
[333663534,1722323432484,-3822.22737472,0.0001,2]
[333663535,1722323432496,-671.60075114,0.0001,2]
[333663550,1722323438293,-751.78605787,0.0001,2]
[333663551,1722323438497,-338.215,0.0001,2]
[333663552,1722323438571,-376.75,0.0001,2]
[333663553,1722323438582,-500.0,0.0001,2]
[333663554,1722323438648,-12055.22030348,0.0001,2]
[333663555,1722323438662,-155.0,0.0001,2]
[333663556,1722323438671,-300.46569196,0.0001,2]
[333663557,1722323438681,-5643.37990153,0.0001,2]
[333663592,1722323440284,-650.0,0.0001,2]
[333663597,1722323440506,-2025.26791969,0.0001,2]
[333663599,1722323440519,-3537.73874138,0.0001,2]
[333663601,1722323440530,-36386.05438753,0.0001,2]
[333663603,1722323440540,-449.09693137,0.0001,2]
[333663605,1722323440550,-412.72446229,0.0001,2]
[333663606,1722323440559,-201.30522841,0.0001,2]
[333663608,1722323440569,-230.81137453,0.0001,2]
[333663609,1722323440578,-200.0,0.0001,2]
[333663611,1722323440587,-200.0,0.0001,2]
[333663613,1722323440596,-210.0,0.000101,2]
[333663614,1722323440606,-1685.65777257,0.00010313,2]
[333663615,1722323440617,-598.62710039,0.00010313,2]
[333663616,1722323440630,-285.04136924,0.00010313,2]
[333663617,1722323440641,-1275.2531778,0.00010313,2]
[333663618,1722323440653,-347.833572,0.00010313,2]
[333663619,1722323440668,-730.55933782,0.00010313,2]
[333663620,1722323440683,-5077.02767018,0.00010313,2]
[333663621,1722323440693,-210.0,0.0001037,2]
[333663622,1722323440703,-661.35,0.00010465,2]
[333663623,1722323440713,-1927.5656,0.000105,2]
[333663625,1722323440723,-340.63659837,0.000105,2]
[333663626,1722323440732,-1000.0,0.000105,2]
[333663628,1722323440743,-4569.73,0.000105,2]
[333663630,1722323440753,-1000.0,0.000105,2]
[333663632,1722323440762,-370.06659988,0.000105,2]
[333663634,1722323440772,-104151.7797464,0.000105,7]
[333663636,1722323440783,-172419.67626906,0.000105,7]
[333663639,1722323440795,-326322.99106444,0.000105,7]
[333663641,1722323440806,-1668.04410092,0.000105,7]
[333663643,1722323440817,-885.29209599,0.000105,7]
[333663908,1722323443237,-1900.37059526,0.00010316,2]
[333663910,1722323443246,-10679.09972308,0.000105,7]
[333663913,1722323443258,-523.34664941,0.000105,7]
[333663916,1722323443269,-4769.26480063,0.000105,7]
[333663918,1722323443281,-500.0,0.000105,7]
[333663920,1722323443292,-2279.0,0.000105,7]
[333663924,1722323443313,-801.46196804,0.000105,7]
[333663927,1722323443324,-1301.76155388,0.000105,7]
[333663931,1722323443336,-56128.64415127,0.000105,7]
[333663935,1722323443352,-6698.37,0.000105,7]
[333663938,1722323443363,-500.0,0.000105,7]
[333663942,1722323443374,-1056.33464152,0.000105,7]
[333663949,1722323443405,-5864.05419378,0.000105,7]
[333663952,1722323443416,-446.83873396,0.000105,7]
[333663955,1722323443428,-2925.0,0.000105,7]
[333663961,1722323443466,-1881.76573124,0.000105,7]
[333663963,1722323443478,-3345.55,0.000105,7]
[333663965,1722323443489,-1728.91551635,0.000105,7]
[333663969,1722323443527,-1888.0000005,0.000105,7]
[333663971,1722323443538,-337.27249606,0.000105,7]
[333663972,1722323443550,-537.16417105,0.000105,7]
[333663973,1722323443561,-2759.5004898,0.000105,7]
[333664231,1722323446301,-310.0765343,0.000105,7]
[333664233,1722323446313,-519.94092033,0.000105,7]
[333664235,1722323446324,-929.49487417,0.000105,7]
[333664237,1722323446335,-456.95008335,0.000105,7]
[333664242,1722323446375,-400.57,0.000105,7]
[333664245,1722323446387,-585.22668101,0.000105,7]
[333664247,1722323446398,-1346.51356479,0.000105,7]
[333664249,1722323446409,-26977.16239601,0.000105,7]
[333664251,1722323446421,-1054.96981706,0.000105,7]
[333664253,1722323446432,-768.0,0.000105,7]
[333664255,1722323446443,-562.5,0.000105,7]
[333664257,1722323446454,-3075.0,0.000105,7]
[333664259,1722323446465,-6707.28779999,0.000105,7]
[333664261,1722323446476,-451.23409272,0.000105,7]
[333664263,1722323446488,-852.18109769,0.000105,7]
[333664265,1722323446499,-584.82021014,0.000105,7]
[333664268,1722323446510,-305.0,0.000105,7]
[333664270,1722323446521,-27493.91517875,0.000105,7]
[333664272,1722323446532,-18687.90820847,0.000105,7]
[333664273,1722323446543,-3823.05,0.000105,7]
[333664275,1722323446553,-493.06652803,0.000105,7]
[333664276,1722323446564,-5040.74311596,0.000105,7]
[333664278,1722323446575,-9409.88840403,0.000105,7]
[333664279,1722323446586,-1405.51915643,0.000105,7]
[333664281,1722323446597,-29000.0,0.000105,7]
[333664283,1722323446608,-2251.39048209,0.000105,7]
[333664284,1722323446620,-57273.6168653,0.000105,7]
[333664286,1722323446632,-442.00189353,0.000105,7]
[333664288,1722323446644,-1647.40367444,0.000105,7]
[333664289,1722323446655,-592.714,0.000105,7]
[333664291,1722323446670,-53536.64750543,0.000105,7]
[333664293,1722323446681,-3806.86725448,0.000105,7]
[333665070,1722323679262,2600.0,0.00015,30]
[333665116,1722323977400,1000.0,0.00025,60]
[333665255,1722324632365,-192.48,7.196e-05,2]
[333665256,1722324632376,-672.03,8.219e-05,2]
[333665257,1722324632385,-1668.31808152,8.975e-05,2]
[333665258,1722324632397,-1914.71501848,8.975e-05,2]
[333665259,1722324632406,-1058.72,9.035e-05,2]
[333665260,1722324632415,-250.0,9.041e-05,2]
[333665261,1722324632424,-797.34,9.074e-05,2]
[333665262,1722324632433,-300.0,9.074e-05,2]
[333665263,1722324632443,-5524.77507326,9.075e-05,2]
[333665264,1722324632455,-750.93154305,9.075e-05,2]
[333665265,1722324632616,-3064.95338369,9.075e-05,2]
[333665266,1722324632627,-800.0,9.075e-05,2]
[333665267,1722324632636,-1747.98,9.131e-05,2]
[333665268,1722324632645,-267.64,9.133e-05,2]
[333665269,1722324632655,-817.72661631,9.143e-05,2]
[333665270,1722324632666,-10267.24643384,9.143e-05,2]
[333665271,1722324632678,-708.08516281,9.143e-05,2]
[333665272,1722324632689,-1336.23099749,9.143e-05,2]
[333665273,1722324632772,-401.44091038,9.143e-05,2]
[333665276,1722324632784,-10359.26987917,9.143e-05,2]
[333665277,1722324632793,-200.0,9.36e-05,2]
[333665279,1722324632802,-164.34,9.558e-05,2]
[333665281,1722324632812,-164.34,9.582e-05,2]
[333665282,1722324632821,-164.34,9.606e-05,2]
[333665283,1722324632830,-499.99,9.67e-05,2]
[333665284,1722324632840,-499.99,9.67e-05,2]
[333665285,1722324632851,-299.99,9.67e-05,2]
[333665286,1722324632861,-162.34,9.743e-05,2]
[333665287,1722324632870,-150.0,0.00010192,2]
[333665288,1722324632879,-800.0,0.0001021,2]
[333665289,1722324632889,-612.9933,0.000104,2]
[333665290,1722324632898,-263.8874,0.000104,2]
[333665291,1722324632908,-312.2502152,0.000104,2]
[333665292,1722324632917,-182.02421399,0.000104,2]
[333665293,1722324632927,-681.4754542,0.000104,2]
[333665294,1722324632937,-672.03,0.00010439,2]
[333665295,1722324632947,-312.25021512,0.00010445,2]
[333665296,1722324632957,-2601.76188012,0.0001047,4]
[333665297,1722324632967,-312.25021512,0.00010491,2]
[333665298,1722324632977,-278.67576334,0.00010497,2]
[333665299,1722324632986,-11091.48,0.00010499,2]
[333665300,1722324632996,-153.39137863,0.00010499,2]
[333665301,1722324633005,-143897.92353761,0.000105,7]
[333665302,1722324633018,-82982.30087,0.000105,7]
[333665303,1722324633028,-54196.48104951,0.000105,7]
[333665304,1722324633039,-3078.55932045,0.000105,7]
[333665307,1722324640186,-290.95999964,8.219e-05,2]
[333665308,1722324640197,-511.34355573,8.219e-05,2]
[333665309,1722324640210,-5488.6542319,0.000105,7]
[333665310,1722324640223,-2400.0,0.000105,7]
[333665311,1722324640234,-701.89106013,0.000105,7]
[333665312,1722324640246,-689.05821815,0.000105,7]
[333665313,1722324640258,-3209.94494954,0.000105,7]
[333665314,1722324640270,-5197.57096875,0.000105,7]
[333665316,1722324640282,-4583.2606,0.000105,7]
[333665317,1722324640293,-720.62291816,0.000105,7]
[333665318,1722324640308,-1315.94695395,0.000105,7]
[333665319,1722324640323,-726.22550044,0.000105,7]
[333665320,1722324640335,-1241.66815981,0.000105,7]
[333665321,1722324640347,-3953.53743651,0.000105,7]
[333665322,1722324640359,-9427.63775785,0.000105,7]
[333665323,1722324640450,-328.47396994,0.000105,7]
[333665324,1722324640462,-1060.86500547,0.000105,7]
[333665325,1722324640627,-2982496.18727748,0.000105,7]
[333665326,1722324640637,-19866.7639,0.000105,2]
[333665327,1722324640646,-255.968,0.000105,2]
[333665328,1722324640656,-199.2846,0.000105,2]
[333665329,1722324640665,-343.7444,0.000105,2]
[333665330,1722324640674,-3000.0,0.000105,2]
[333665331,1722324640683,-200.0,0.0001053,2]
[333665332,1722324640693,-200.0,0.00010533,2]
[333665333,1722324640703,-200.0,0.00010533,2]
[333665334,1722324640712,-312.25021512,0.00010536,2]
[333665335,1722324640721,-312.25021512,0.00010582,2]
[333665336,1722324640731,-3066206.48027889,0.000106,2]
[333665337,1722324640741,-312.25021512,0.00010627,2]
[333665338,1722324640750,-210.0,0.0001064,2]
[333665339,1722324640759,-312.25021512,0.00010673,2]
[333665340,1722324640768,-152.987167,0.00010715,2]
[333665341,1722324640778,-312.25021512,0.00010718,2]
[333665342,1722324640787,-387.77865105,0.00010738,2]
[333665343,1722324640797,-312.25021512,0.00010764,2]
[333665344,1722324640806,-1018.04432322,0.0001077,2]
[333665345,1722324640815,-3308.751,0.00010796,2]
[333665346,1722324640825,-2012.283,0.00010796,2]
[333665347,1722324640834,-905.381,0.00010796,2]
[333665348,1722324640843,-509.397,0.00010796,2]
[333665349,1722324640853,-556.722,0.00010796,2]
[333665350,1722324640865,-153.418,0.00010796,2]
[333665351,1722324640874,-312.25021512,0.00010809,2]
[333665352,1722324640884,-419.88204947,0.00010825,2]
[333665353,1722324640893,-152.987167,0.00010849,2]
[333665354,1722324640903,-1247.31652948,0.00010854,2]
[333665355,1722324640912,-312.25021512,0.00010855,2]
[333665356,1722324640922,-1247.31652948,0.00010855,2]
[333665357,1722324640931,-10000.0,0.00010858,2]
[333665358,1722324640941,-1247.31652948,0.0001087,2]
[333665359,1722324640950,-178.30733279,0.00010899,2]
[333665360,1722324640959,-312.25021512,0.000109,2]
[333665361,1722324640969,-2505.36714712,0.000109,2]
[333665362,1722324640978,-265.01109065,0.000109,2]
[333665363,1722324640988,-178.30733279,0.000109,2]
[333665364,1722324640997,-500.0,0.00010911,2]
[333665365,1722324641007,-500.0,0.00010912,2]
[333665366,1722324641016,-210.0,0.0001092,2]
[333665367,1722324641026,-500.0,0.00010958,2]
[333665368,1722324641036,-188.15333115,0.00010958,2]
[333665369,1722324641046,-500.0,0.00010958,2]
[333665370,1722324641055,-500.0,0.00010958,2]
[333665371,1722324641064,-268.51286658,0.00010958,2]
[333665372,1722324641074,-500.0,0.00010958,2]
[333665374,1722324641084,-500.0,0.00010958,2]
[333665375,1722324641093,-500.0,0.00010958,2]
[333665376,1722324641102,-500.0,0.00010958,2]
[333665377,1722324641111,-500.0,0.00010958,2]
[333665378,1722324641125,-500.0,0.00010958,2]
[333665379,1722324641138,-500.0,0.00010958,2]
[333665380,1722324641147,-450.0,0.00010958,2]
[333665381,1722324641156,-341.66428822,0.00010958,2]
[333665382,1722324641165,-257.94426846,0.00010958,2]
[333665383,1722324641177,-500.0,0.00010958,2]
[333665384,1722324641187,-500.0,0.00010958,2]
[333665385,1722324641198,-500.0,0.00010958,2]
[333665386,1722324641208,-500.0,0.00010958,2]
[333665387,1722324641218,-500.0,0.00010958,2]
[333665388,1722324641227,-500.0,0.00010958,2]
[333665389,1722324641237,-500.0,0.00010958,2]
[333665390,1722324641246,-500.0,0.00010958,2]
[333665391,1722324641255,-500.0,0.00010958,2]
[333665392,1722324641265,-500.0,0.00010958,2]
[333665393,1722324641274,-500.0,0.00010958,2]
[333665394,1722324641284,-471.2,0.00010958,2]
[333665395,1722324641295,-500.0,0.00010958,2]
[333665396,1722324641305,-500.0,0.00010958,2]
[333665397,1722324641316,-506.78917419,0.00010958,2]
[333665398,1722324641326,-500.0,0.00010958,2]
[333665399,1722324641340,-500.0,0.00010958,2]
[333665400,1722324641349,-325.8054141,0.00010958,2]
[333665401,1722324641359,-500.0,0.00010958,2]
[333665402,1722324641374,-500.0,0.00010958,2]
[333665403,1722324641384,-500.0,0.00010958,2]
[333665404,1722324641394,-500.0,0.00010958,2]
[333665405,1722324641405,-500.0,0.00010958,2]
[333665406,1722324641415,-500.0,0.00010958,2]
[333665407,1722324641426,-500.0,0.00010958,2]
[333665408,1722324641436,-500.0,0.00010958,2]
[333665409,1722324641447,-531.15325862,0.00010958,2]
[333665410,1722324641457,-500.0,0.00010958,2]
[333665411,1722324641467,-496.31407109,0.00010958,2]
[333665412,1722324641477,-529.07934344,0.00010958,2]
[333665413,1722324641487,-500.0,0.00010958,2]
[333665414,1722324641498,-500.0,0.00010958,2]
[333665415,1722324641508,-500.0,0.00010958,2]
[333665416,1722324641519,-500.0,0.00010958,2]
[333665417,1722324641529,-500.0,0.00010958,2]
[333665418,1722324641538,-500.0,0.00010958,2]
[333665419,1722324641548,-500.0,0.00010958,2]
[333665420,1722324641559,-500.0,0.00010958,2]
[333665421,1722324641568,-500.0,0.00010958,2]
[333665422,1722324641578,-500.0,0.00010958,2]
[333665423,1722324641587,-500.0,0.00010958,2]
[333665424,1722324641597,-420.93696468,0.00010958,2]
[333665425,1722324641607,-611.25,0.00010958,2]
[333665426,1722324641621,-509.94288987,0.00010958,2]
[333665427,1722324641631,-500.0,0.00010958,2]
[333665428,1722324641640,-500.0,0.00010958,2]
[333665429,1722324641650,-500.0,0.00010958,2]
[333665430,1722324641659,-500.0,0.00010958,2]
[333665431,1722324641670,-1738.07,0.00010958,2]
[333665432,1722324641680,-1738.07,0.00010958,2]
[333665433,1722324641689,-1738.07,0.00010958,2]
[333665434,1722324641698,-1738.07,0.00010958,2]
[333665435,1722324641708,-1738.07,0.00010958,2]
[333665436,1722324641718,-1738.07,0.00010958,2]
[333665437,1722324641727,-500.0,0.00010958,2]
[333665438,1722324641736,-1738.07,0.00010958,2]
[333665439,1722324641746,-1738.07,0.00010958,2]
[333665440,1722324641755,-1738.07,0.00010958,2]
[333665441,1722324641764,-1738.07,0.00010958,2]
[333665442,1722324641773,-1738.07,0.00010958,2]
[333665443,1722324641783,-1738.07,0.00010958,2]
[333665444,1722324641792,-1738.07,0.00010958,2]
[333665445,1722324641802,-1738.07,0.00010958,2]
[333665446,1722324641811,-1738.07,0.00010958,2]
[333665447,1722324641820,-500.0,0.00010958,2]
[333665448,1722324641829,-500.0,0.00010958,2]
[333665449,1722324641839,-183.83429672,0.00010958,2]
[333665450,1722324641848,-500.0,0.00010958,2]
[333665451,1722324641858,-500.0,0.00010958,2]
[333665452,1722324641873,-500.0,0.00010958,2]
[333665453,1722324641882,-500.0,0.00010958,2]
[333665454,1722324641892,-500.0,0.00010958,2]
[333665455,1722324641900,-507.62964556,0.00010958,2]
[333665456,1722324641912,-500.0,0.00010958,2]
[333665457,1722324641921,-213.6,0.00010958,2]
[333665458,1722324641931,-500.0,0.00010958,2]
[333665459,1722324641940,-500.0,0.00010958,2]
[333665460,1722324641949,-500.0,0.00010958,2]
[333665461,1722324641959,-521.87999999,0.00010958,2]
[333665462,1722324641968,-500.0,0.00010958,2]
[333665463,1722324641978,-500.0,0.00010958,2]
[333665464,1722324641987,-500.0,0.00010958,2]
[333665465,1722324641997,-500.0,0.00010958,2]
[333665466,1722324642007,-500.0,0.00010958,2]
[333665467,1722324642016,-301.5106387,0.00010958,2]
[333665468,1722324642026,-500.0,0.00010958,2]
[333665469,1722324642035,-500.0,0.00010958,2]
[333665470,1722324642044,-500.0,0.00010958,2]
[333665471,1722324642054,-500.0,0.00010958,2]
[333665472,1722324642064,-500.0,0.00010958,2]
[333665473,1722324642073,-522.86587756,0.00010958,2]
[333665474,1722324642082,-500.0,0.00010958,2]
[333665475,1722324642091,-500.0,0.00010958,2]
[333665476,1722324642101,-500.0,0.00010958,2]
[333665477,1722324642110,-483.67142439,0.00010958,2]
[333665478,1722324642122,-500.0,0.00010958,2]
[333665479,1722324642135,-500.0,0.00010958,2]
[333665480,1722324642145,-500.0,0.00010958,2]
[333665481,1722324642154,-500.0,0.00010958,2]
[333665482,1722324642164,-500.0,0.00010958,2]
[333665483,1722324642175,-500.0,0.00010958,2]
[333665484,1722324642184,-518.24516402,0.00010958,2]
[333665485,1722324642193,-500.0,0.00010958,2]
[333665486,1722324642205,-500.0,0.00010958,2]
[333665487,1722324642216,-500.0,0.00010958,2]
[333665488,1722324642225,-500.0,0.00010958,2]
[333665489,1722324642235,-500.0,0.00010958,2]
[333665490,1722324642244,-500.0,0.00010958,2]
[333665491,1722324642254,-573.14905323,0.00010958,2]
[333665492,1722324642264,-610.62893257,0.00010958,2]
[333665493,1722324642274,-500.0,0.00010958,2]
[333665494,1722324642284,-355.21,0.00010958,2]
[333665495,1722324642294,-500.0,0.00010958,2]
[333665496,1722324642303,-500.0,0.00010958,2]
[333665497,1722324642313,-500.0,0.00010958,2]
[333665498,1722324642322,-500.0,0.00010958,2]
[333665499,1722324642332,-500.0,0.00010958,2]
[333665500,1722324642526,-500.0,0.00010958,2]
[333665501,1722324642536,-500.0,0.00010958,2]
[333665502,1722324642545,-510.95905145,0.00010958,2]
[333665503,1722324642555,-500.0,0.00010958,2]
[333665504,1722324642564,-519.59,0.00010958,2]
[333665505,1722324642574,-500.0,0.00010958,2]
[333665506,1722324642583,-500.0,0.00010958,2]
[333665507,1722324642593,-500.0,0.00010958,2]